{"text_format":"3","workbook":"xlsx","n_sheets":5,"sheets":["Ürün Satış Raporu","Geçmiş Veriler","Fiyat Listesi","Fiyat Noktası Özeti","Satış Eğilimi Özeti"],"not_rendered":{"charts":2,"defined_names":6,"pivot_tables":2},"read":"whole","date_system":"1900"}

{"sheet":"Ürün Satış Raporu","index":0,"n_rows":20,"n_cols":2,"rows_kept":20}
[null,"Ürün Satış Raporu"]
{"$rows_empty":18}
[null," Ürünler"]

{"sheet":"Geçmiş Veriler","index":1,"n_rows":33,"n_cols":10,"rows_kept":33}
[null,"Geçmiş Ürün Fiyat Listesi ve Satışlar"]
[]
[null,"Ürün No","Ürün Adı","Fiyat Tarihi","Birim Başına Perakende Fiyat","Birim Başına Toptan Fiyat*","Satılan Birim (perakende)","Satılan Birim (toplam)","Toplam Satış (#)","Toplam Satış (ABD Doları)"]
[null,5,{"$f":"IFERROR(IF(tblSatışlar[[#This Row],[Ürün No]]<>\"\",VLOOKUP(tblSatışlar[Ürün No],tblÜrünler[[Ürün No]:[Ad]],2,FALSE),\"\"),\"Bilinmeyen Ürün No\")","v":"Şort"},"2012-01-01",20,{"v":20,"d":"20 TL"},629,{"v":1254,"d":"1,254"},{"$f":"tblSatışlar[[#This Row],[Satılan Birim (perakende)]]+tblSatışlar[[#This Row],[Satılan Birim (toplam)]]","v":{"v":1883,"d":"1,883"}},{"$f":"tblSatışlar[[#This Row],[Satılan Birim (perakende)]]*tblSatışlar[[#This Row],[Birim Başına Perakende Fiyat]]+tblSatışlar[[#This Row],[Satılan Birim (toplam)]]*tblSatışlar[[#This Row],[Birim Başına Toptan Fiyat*]]","v":{"v":37660,"d":"37,660 TL"}}]
[null,1,{"$f":"IFERROR(IF(tblSatışlar[[#This Row],[Ürün No]]<>\"\",VLOOKUP(tblSatışlar[Ürün No],tblÜrünler[[Ürün No]:[Ad]],2,FALSE),\"\"),\"Bilinmeyen Ürün No\")","v":"Gömlek"},"2012-01-01",88,{"v":54,"d":"54 TL"},734,{"v":1427,"d":"1,427"},{"$f":"tblSatışlar[[#This Row],[Satılan Birim (perakende)]]+tblSatışlar[[#This Row],[Satılan Birim (toplam)]]","v":{"v":2161,"d":"2,161"}},{"$f":"tblSatışlar[[#This Row],[Satılan Birim (perakende)]]*tblSatışlar[[#This Row],[Birim Başına Perakende Fiyat]]+tblSatışlar[[#This Row],[Satılan Birim (toplam)]]*tblSatışlar[[#This Row],[Birim Başına Toptan Fiyat*]]","v":{"v":141650,"d":"141,650 TL"}}]
[null,2,{"$f":"IFERROR(IF(tblSatışlar[[#This Row],[Ürün No]]<>\"\",VLOOKUP(tblSatışlar[Ürün No],tblÜrünler[[Ürün No]:[Ad]],2,FALSE),\"\"),\"Bilinmeyen Ürün No\")","v":"Sandalet"},"2012-01-01",70,{"v":44,"d":"44 TL"},744,{"v":1043,"d":"1,043"},{"$f":"tblSatışlar[[#This Row],[Satılan Birim (perakende)]]+tblSatışlar[[#This Row],[Satılan Birim (toplam)]]","v":{"v":1787,"d":"1,787"}},{"$f":"tblSatışlar[[#This Row],[Satılan Birim (perakende)]]*tblSatışlar[[#This Row],[Birim Başına Perakende Fiyat]]+tblSatışlar[[#This Row],[Satılan Birim (toplam)]]*tblSatışlar[[#This Row],[Birim Başına Toptan Fiyat*]]","v":{"v":97972,"d":"97,972 TL"}}]
[null,3,{"$f":"IFERROR(IF(tblSatışlar[[#This Row],[Ürün No]]<>\"\",VLOOKUP(tblSatışlar[Ürün No],tblÜrünler[[Ürün No]:[Ad]],2,FALSE),\"\"),\"Bilinmeyen Ürün No\")","v":"Şemsiye"},"2012-01-01",63,{"v":44,"d":"44 TL"},681,{"v":1523,"d":"1,523"},{"$f":"tblSatışlar[[#This Row],[Satılan Birim (perakende)]]+tblSatışlar[[#This Row],[Satılan Birim (toplam)]]","v":{"v":2204,"d":"2,204"}},{"$f":"tblSatışlar[[#This Row],[Satılan Birim (perakende)]]*tblSatışlar[[#This Row],[Birim Başına Perakende Fiyat]]+tblSatışlar[[#This Row],[Satılan Birim (toplam)]]*tblSatışlar[[#This Row],[Birim Başına Toptan Fiyat*]]","v":{"v":109915,"d":"109,915 TL"}}]
[null,4,{"$f":"IFERROR(IF(tblSatışlar[[#This Row],[Ürün No]]<>\"\",VLOOKUP(tblSatışlar[Ürün No],tblÜrünler[[Ürün No]:[Ad]],2,FALSE),\"\"),\"Bilinmeyen Ürün No\")","v":"Su şişesi"},"2012-01-01",35,{"v":27,"d":"27 TL"},602,{"v":1822,"d":"1,822"},{"$f":"tblSatışlar[[#This Row],[Satılan Birim (perakende)]]+tblSatışlar[[#This Row],[Satılan Birim (toplam)]]","v":{"v":2424,"d":"2,424"}},{"$f":"tblSatışlar[[#This Row],[Satılan Birim (perakende)]]*tblSatışlar[[#This Row],[Birim Başına Perakende Fiyat]]+tblSatışlar[[#This Row],[Satılan Birim (toplam)]]*tblSatışlar[[#This Row],[Birim Başına Toptan Fiyat*]]","v":{"v":70264,"d":"70,264 TL"}}]
[null,1,{"$f":"IFERROR(IF(tblSatışlar[[#This Row],[Ürün No]]<>\"\",VLOOKUP(tblSatışlar[Ürün No],tblÜrünler[[Ürün No]:[Ad]],2,FALSE),\"\"),\"Bilinmeyen Ürün No\")","v":"Gömlek"},"2012-02-01",55,{"v":44,"d":"44 TL"},678,{"v":1515,"d":"1,515"},{"$f":"tblSatışlar[[#This Row],[Satılan Birim (perakende)]]+tblSatışlar[[#This Row],[Satılan Birim (toplam)]]","v":{"v":2193,"d":"2,193"}},{"$f":"tblSatışlar[[#This Row],[Satılan Birim (perakende)]]*tblSatışlar[[#This Row],[Birim Başına Perakende Fiyat]]+tblSatışlar[[#This Row],[Satılan Birim (toplam)]]*tblSatışlar[[#This Row],[Birim Başına Toptan Fiyat*]]","v":{"v":103950,"d":"103,950 TL"}}]
[null,2,{"$f":"IFERROR(IF(tblSatışlar[[#This Row],[Ürün No]]<>\"\",VLOOKUP(tblSatışlar[Ürün No],tblÜrünler[[Ürün No]:[Ad]],2,FALSE),\"\"),\"Bilinmeyen Ürün No\")","v":"Sandalet"},"2012-02-01",83,{"v":54,"d":"54 TL"},753,{"v":1005,"d":"1,005"},{"$f":"tblSatışlar[[#This Row],[Satılan Birim (perakende)]]+tblSatışlar[[#This Row],[Satılan Birim (toplam)]]","v":{"v":1758,"d":"1,758"}},{"$f":"tblSatışlar[[#This Row],[Satılan Birim (perakende)]]*tblSatışlar[[#This Row],[Birim Başına Perakende Fiyat]]+tblSatışlar[[#This Row],[Satılan Birim (toplam)]]*tblSatışlar[[#This Row],[Birim Başına Toptan Fiyat*]]","v":{"v":116769,"d":"116,769 TL"}}]
[null,3,{"$f":"IFERROR(IF(tblSatışlar[[#This Row],[Ürün No]]<>\"\",VLOOKUP(tblSatışlar[Ürün No],tblÜrünler[[Ürün No]:[Ad]],2,FALSE),\"\"),\"Bilinmeyen Ürün No\")","v":"Şemsiye"},"2012-02-01",34,{"v":34,"d":"34 TL"},986,{"v":1069,"d":"1,069"},{"$f":"tblSatışlar[[#This Row],[Satılan Birim (perakende)]]+tblSatışlar[[#This Row],[Satılan Birim (toplam)]]","v":{"v":2055,"d":"2,055"}},{"$f":"tblSatışlar[[#This Row],[Satılan Birim (perakende)]]*tblSatışlar[[#This Row],[Birim Başına Perakende Fiyat]]+tblSatışlar[[#This Row],[Satılan Birim (toplam)]]*tblSatışlar[[#This Row],[Birim Başına Toptan Fiyat*]]","v":{"v":69870,"d":"69,870 TL"}}]
[null,4,{"$f":"IFERROR(IF(tblSatışlar[[#This Row],[Ürün No]]<>\"\",VLOOKUP(tblSatışlar[Ürün No],tblÜrünler[[Ürün No]:[Ad]],2,FALSE),\"\"),\"Bilinmeyen Ürün No\")","v":"Su şişesi"},"2012-02-01",35,{"v":25,"d":"25 TL"},848,{"v":1211,"d":"1,211"},{"$f":"tblSatışlar[[#This Row],[Satılan Birim (perakende)]]+tblSatışlar[[#This Row],[Satılan Birim (toplam)]]","v":{"v":2059,"d":"2,059"}},{"$f":"tblSatışlar[[#This Row],[Satılan Birim (perakende)]]*tblSatışlar[[#This Row],[Birim Başına Perakende Fiyat]]+tblSatışlar[[#This Row],[Satılan Birim (toplam)]]*tblSatışlar[[#This Row],[Birim Başına Toptan Fiyat*]]","v":{"v":59955,"d":"59,955 TL"}}]
[null,5,{"$f":"IFERROR(IF(tblSatışlar[[#This Row],[Ürün No]]<>\"\",VLOOKUP(tblSatışlar[Ürün No],tblÜrünler[[Ürün No]:[Ad]],2,FALSE),\"\"),\"Bilinmeyen Ürün No\")","v":"Şort"},"2012-02-01",41,{"v":38,"d":"38 TL"},980,{"v":1330,"d":"1,330"},{"$f":"tblSatışlar[[#This Row],[Satılan Birim (perakende)]]+tblSatışlar[[#This Row],[Satılan Birim (toplam)]]","v":{"v":2310,"d":"2,310"}},{"$f":"tblSatışlar[[#This Row],[Satılan Birim (perakende)]]*tblSatışlar[[#This Row],[Birim Başına Perakende Fiyat]]+tblSatışlar[[#This Row],[Satılan Birim (toplam)]]*tblSatışlar[[#This Row],[Birim Başına Toptan Fiyat*]]","v":{"v":90720,"d":"90,720 TL"}}]
[null,1,{"$f":"IFERROR(IF(tblSatışlar[[#This Row],[Ürün No]]<>\"\",VLOOKUP(tblSatışlar[Ürün No],tblÜrünler[[Ürün No]:[Ad]],2,FALSE),\"\"),\"Bilinmeyen Ürün No\")","v":"Gömlek"},"2012-02-29",27,{"v":18,"d":"18 TL"},533,{"v":1936,"d":"1,936"},{"$f":"tblSatışlar[[#This Row],[Satılan Birim (perakende)]]+tblSatışlar[[#This Row],[Satılan Birim (toplam)]]","v":{"v":2469,"d":"2,469"}},{"$f":"tblSatışlar[[#This Row],[Satılan Birim (perakende)]]*tblSatışlar[[#This Row],[Birim Başına Perakende Fiyat]]+tblSatışlar[[#This Row],[Satılan Birim (toplam)]]*tblSatışlar[[#This Row],[Birim Başına Toptan Fiyat*]]","v":{"v":49239,"d":"49,239 TL"}}]
[null,2,{"$f":"IFERROR(IF(tblSatışlar[[#This Row],[Ürün No]]<>\"\",VLOOKUP(tblSatışlar[Ürün No],tblÜrünler[[Ürün No]:[Ad]],2,FALSE),\"\"),\"Bilinmeyen Ürün No\")","v":"Sandalet"},"2012-02-29",38,{"v":28,"d":"28 TL"},952,{"v":1512,"d":"1,512"},{"$f":"tblSatışlar[[#This Row],[Satılan Birim (perakende)]]+tblSatışlar[[#This Row],[Satılan Birim (toplam)]]","v":{"v":2464,"d":"2,464"}},{"$f":"tblSatışlar[[#This Row],[Satılan Birim (perakende)]]*tblSatışlar[[#This Row],[Birim Başına Perakende Fiyat]]+tblSatışlar[[#This Row],[Satılan Birim (toplam)]]*tblSatışlar[[#This Row],[Birim Başına Toptan Fiyat*]]","v":{"v":78512,"d":"78,512 TL"}}]
[null,3,{"$f":"IFERROR(IF(tblSatışlar[[#This Row],[Ürün No]]<>\"\",VLOOKUP(tblSatışlar[Ürün No],tblÜrünler[[Ürün No]:[Ad]],2,FALSE),\"\"),\"Bilinmeyen Ürün No\")","v":"Şemsiye"},"2012-02-29",92,{"v":92,"d":"92 TL"},956,{"v":1266,"d":"1,266"},{"$f":"tblSatışlar[[#This Row],[Satılan Birim (perakende)]]+tblSatışlar[[#This Row],[Satılan Birim (toplam)]]","v":{"v":2222,"d":"2,222"}},{"$f":"tblSatışlar[[#This Row],[Satılan Birim (perakende)]]*tblSatışlar[[#This Row],[Birim Başına Perakende Fiyat]]+tblSatışlar[[#This Row],[Satılan Birim (toplam)]]*tblSatışlar[[#This Row],[Birim Başına Toptan Fiyat*]]","v":{"v":204424,"d":"204,424 TL"}}]
[null,4,{"$f":"IFERROR(IF(tblSatışlar[[#This Row],[Ürün No]]<>\"\",VLOOKUP(tblSatışlar[Ürün No],tblÜrünler[[Ürün No]:[Ad]],2,FALSE),\"\"),\"Bilinmeyen Ürün No\")","v":"Su şişesi"},"2012-02-29",43,{"v":36,"d":"36 TL"},952,{"v":1390,"d":"1,390"},{"$f":"tblSatışlar[[#This Row],[Satılan Birim (perakende)]]+tblSatışlar[[#This Row],[Satılan Birim (toplam)]]","v":{"v":2342,"d":"2,342"}},{"$f":"tblSatışlar[[#This Row],[Satılan Birim (perakende)]]*tblSatışlar[[#This Row],[Birim Başına Perakende Fiyat]]+tblSatışlar[[#This Row],[Satılan Birim (toplam)]]*tblSatışlar[[#This Row],[Birim Başına Toptan Fiyat*]]","v":{"v":90976,"d":"90,976 TL"}}]
[null,5,{"$f":"IFERROR(IF(tblSatışlar[[#This Row],[Ürün No]]<>\"\",VLOOKUP(tblSatışlar[Ürün No],tblÜrünler[[Ürün No]:[Ad]],2,FALSE),\"\"),\"Bilinmeyen Ürün No\")","v":"Şort"},"2012-02-29",98,{"v":73,"d":"73 TL"},530,{"v":1452,"d":"1,452"},{"$f":"tblSatışlar[[#This Row],[Satılan Birim (perakende)]]+tblSatışlar[[#This Row],[Satılan Birim (toplam)]]","v":{"v":1982,"d":"1,982"}},{"$f":"tblSatışlar[[#This Row],[Satılan Birim (perakende)]]*tblSatışlar[[#This Row],[Birim Başına Perakende Fiyat]]+tblSatışlar[[#This Row],[Satılan Birim (toplam)]]*tblSatışlar[[#This Row],[Birim Başına Toptan Fiyat*]]","v":{"v":157936,"d":"157,936 TL"}}]
[null,1,{"$f":"IFERROR(IF(tblSatışlar[[#This Row],[Ürün No]]<>\"\",VLOOKUP(tblSatışlar[Ürün No],tblÜrünler[[Ürün No]:[Ad]],2,FALSE),\"\"),\"Bilinmeyen Ürün No\")","v":"Gömlek"},"2012-03-31",38,{"v":28,"d":"28 TL"},973,{"v":1415,"d":"1,415"},{"$f":"tblSatışlar[[#This Row],[Satılan Birim (perakende)]]+tblSatışlar[[#This Row],[Satılan Birim (toplam)]]","v":{"v":2388,"d":"2,388"}},{"$f":"tblSatışlar[[#This Row],[Satılan Birim (perakende)]]*tblSatışlar[[#This Row],[Birim Başına Perakende Fiyat]]+tblSatışlar[[#This Row],[Satılan Birim (toplam)]]*tblSatışlar[[#This Row],[Birim Başına Toptan Fiyat*]]","v":{"v":76594,"d":"76,594 TL"}}]
[null,2,{"$f":"IFERROR(IF(tblSatışlar[[#This Row],[Ürün No]]<>\"\",VLOOKUP(tblSatışlar[Ürün No],tblÜrünler[[Ürün No]:[Ad]],2,FALSE),\"\"),\"Bilinmeyen Ürün No\")","v":"Sandalet"},"2012-03-31",50,{"v":36,"d":"36 TL"},672,{"v":1105,"d":"1,105"},{"$f":"tblSatışlar[[#This Row],[Satılan Birim (perakende)]]+tblSatışlar[[#This Row],[Satılan Birim (toplam)]]","v":{"v":1777,"d":"1,777"}},{"$f":"tblSatışlar[[#This Row],[Satılan Birim (perakende)]]*tblSatışlar[[#This Row],[Birim Başına Perakende Fiyat]]+tblSatışlar[[#This Row],[Satılan Birim (toplam)]]*tblSatışlar[[#This Row],[Birim Başına Toptan Fiyat*]]","v":{"v":73380,"d":"73,380 TL"}}]
[null,3,{"$f":"IFERROR(IF(tblSatışlar[[#This Row],[Ürün No]]<>\"\",VLOOKUP(tblSatışlar[Ürün No],tblÜrünler[[Ürün No]:[Ad]],2,FALSE),\"\"),\"Bilinmeyen Ürün No\")","v":"Şemsiye"},"2012-03-31",24,{"v":23,"d":"23 TL"},769,{"v":1629,"d":"1,629"},{"$f":"tblSatışlar[[#This Row],[Satılan Birim (perakende)]]+tblSatışlar[[#This Row],[Satılan Birim (toplam)]]","v":{"v":2398,"d":"2,398"}},{"$f":"tblSatışlar[[#This Row],[Satılan Birim (perakende)]]*tblSatışlar[[#This Row],[Birim Başına Perakende Fiyat]]+tblSatışlar[[#This Row],[Satılan Birim (toplam)]]*tblSatışlar[[#This Row],[Birim Başına Toptan Fiyat*]]","v":{"v":55923,"d":"55,923 TL"}}]
[null,4,{"$f":"IFERROR(IF(tblSatışlar[[#This Row],[Ürün No]]<>\"\",VLOOKUP(tblSatışlar[Ürün No],tblÜrünler[[Ürün No]:[Ad]],2,FALSE),\"\"),\"Bilinmeyen Ürün No\")","v":"Su şişesi"},"2012-03-31",72,{"v":57,"d":"57 TL"},985,{"v":1848,"d":"1,848"},{"$f":"tblSatışlar[[#This Row],[Satılan Birim (perakende)]]+tblSatışlar[[#This Row],[Satılan Birim (toplam)]]","v":{"v":2833,"d":"2,833"}},{"$f":"tblSatışlar[[#This Row],[Satılan Birim (perakende)]]*tblSatışlar[[#This Row],[Birim Başına Perakende Fiyat]]+tblSatışlar[[#This Row],[Satılan Birim (toplam)]]*tblSatışlar[[#This Row],[Birim Başına Toptan Fiyat*]]","v":{"v":176256,"d":"176,256 TL"}}]
[null,5,{"$f":"IFERROR(IF(tblSatışlar[[#This Row],[Ürün No]]<>\"\",VLOOKUP(tblSatışlar[Ürün No],tblÜrünler[[Ürün No]:[Ad]],2,FALSE),\"\"),\"Bilinmeyen Ürün No\")","v":"Şort"},"2012-03-31",85,{"v":43,"d":"43 TL"},721,{"v":1426,"d":"1,426"},{"$f":"tblSatışlar[[#This Row],[Satılan Birim (perakende)]]+tblSatışlar[[#This Row],[Satılan Birim (toplam)]]","v":{"v":2147,"d":"2,147"}},{"$f":"tblSatışlar[[#This Row],[Satılan Birim (perakende)]]*tblSatışlar[[#This Row],[Birim Başına Perakende Fiyat]]+tblSatışlar[[#This Row],[Satılan Birim (toplam)]]*tblSatışlar[[#This Row],[Birim Başına Toptan Fiyat*]]","v":{"v":122603,"d":"122,603 TL"}}]
[null,1,{"$f":"IFERROR(IF(tblSatışlar[[#This Row],[Ürün No]]<>\"\",VLOOKUP(tblSatışlar[Ürün No],tblÜrünler[[Ürün No]:[Ad]],2,FALSE),\"\"),\"Bilinmeyen Ürün No\")","v":"Gömlek"},"2012-04-30",91,{"v":65,"d":"65 TL"},603,{"v":1226,"d":"1,226"},{"$f":"tblSatışlar[[#This Row],[Satılan Birim (perakende)]]+tblSatışlar[[#This Row],[Satılan Birim (toplam)]]","v":{"v":1829,"d":"1,829"}},{"$f":"tblSatışlar[[#This Row],[Satılan Birim (perakende)]]*tblSatışlar[[#This Row],[Birim Başına Perakende Fiyat]]+tblSatışlar[[#This Row],[Satılan Birim (toplam)]]*tblSatışlar[[#This Row],[Birim Başına Toptan Fiyat*]]","v":{"v":134563,"d":"134,563 TL"}}]
[null,2,{"$f":"IFERROR(IF(tblSatışlar[[#This Row],[Ürün No]]<>\"\",VLOOKUP(tblSatışlar[Ürün No],tblÜrünler[[Ürün No]:[Ad]],2,FALSE),\"\"),\"Bilinmeyen Ürün No\")","v":"Sandalet"},"2012-04-30",91,{"v":55,"d":"55 TL"},892,{"v":1823,"d":"1,823"},{"$f":"tblSatışlar[[#This Row],[Satılan Birim (perakende)]]+tblSatışlar[[#This Row],[Satılan Birim (toplam)]]","v":{"v":2715,"d":"2,715"}},{"$f":"tblSatışlar[[#This Row],[Satılan Birim (perakende)]]*tblSatışlar[[#This Row],[Birim Başına Perakende Fiyat]]+tblSatışlar[[#This Row],[Satılan Birim (toplam)]]*tblSatışlar[[#This Row],[Birim Başına Toptan Fiyat*]]","v":{"v":181437,"d":"181,437 TL"}}]
[null,3,{"$f":"IFERROR(IF(tblSatışlar[[#This Row],[Ürün No]]<>\"\",VLOOKUP(tblSatışlar[Ürün No],tblÜrünler[[Ürün No]:[Ad]],2,FALSE),\"\"),\"Bilinmeyen Ürün No\")","v":"Şemsiye"},"2012-04-30",42,{"v":42,"d":"42 TL"},611,{"v":1181,"d":"1,181"},{"$f":"tblSatışlar[[#This Row],[Satılan Birim (perakende)]]+tblSatışlar[[#This Row],[Satılan Birim (toplam)]]","v":{"v":1792,"d":"1,792"}},{"$f":"tblSatışlar[[#This Row],[Satılan Birim (perakende)]]*tblSatışlar[[#This Row],[Birim Başına Perakende Fiyat]]+tblSatışlar[[#This Row],[Satılan Birim (toplam)]]*tblSatışlar[[#This Row],[Birim Başına Toptan Fiyat*]]","v":{"v":75264,"d":"75,264 TL"}}]
[null,4,{"$f":"IFERROR(IF(tblSatışlar[[#This Row],[Ürün No]]<>\"\",VLOOKUP(tblSatışlar[Ürün No],tblÜrünler[[Ürün No]:[Ad]],2,FALSE),\"\"),\"Bilinmeyen Ürün No\")","v":"Su şişesi"},"2012-04-30",85,{"v":43,"d":"43 TL"},530,{"v":1039,"d":"1,039"},{"$f":"tblSatışlar[[#This Row],[Satılan Birim (perakende)]]+tblSatışlar[[#This Row],[Satılan Birim (toplam)]]","v":{"v":1569,"d":"1,569"}},{"$f":"tblSatışlar[[#This Row],[Satılan Birim (perakende)]]*tblSatışlar[[#This Row],[Birim Başına Perakende Fiyat]]+tblSatışlar[[#This Row],[Satılan Birim (toplam)]]*tblSatışlar[[#This Row],[Birim Başına Toptan Fiyat*]]","v":{"v":89727,"d":"89,727 TL"}}]
[null,5,{"$f":"IFERROR(IF(tblSatışlar[[#This Row],[Ürün No]]<>\"\",VLOOKUP(tblSatışlar[Ürün No],tblÜrünler[[Ürün No]:[Ad]],2,FALSE),\"\"),\"Bilinmeyen Ürün No\")","v":"Şort"},"2012-04-30",82,{"v":71,"d":"71 TL"},716,{"v":1249,"d":"1,249"},{"$f":"tblSatışlar[[#This Row],[Satılan Birim (perakende)]]+tblSatışlar[[#This Row],[Satılan Birim (toplam)]]","v":{"v":1965,"d":"1,965"}},{"$f":"tblSatışlar[[#This Row],[Satılan Birim (perakende)]]*tblSatışlar[[#This Row],[Birim Başına Perakende Fiyat]]+tblSatışlar[[#This Row],[Satılan Birim (toplam)]]*tblSatışlar[[#This Row],[Birim Başına Toptan Fiyat*]]","v":{"v":147391,"d":"147,391 TL"}}]
[null,1,{"$f":"IFERROR(IF(tblSatışlar[[#This Row],[Ürün No]]<>\"\",VLOOKUP(tblSatışlar[Ürün No],tblÜrünler[[Ürün No]:[Ad]],2,FALSE),\"\"),\"Bilinmeyen Ürün No\")","v":"Gömlek"},"2012-05-14",34,{"v":31,"d":"31 TL"},850,{"v":1548,"d":"1,548"},{"$f":"tblSatışlar[[#This Row],[Satılan Birim (perakende)]]+tblSatışlar[[#This Row],[Satılan Birim (toplam)]]","v":{"v":2398,"d":"2,398"}},{"$f":"tblSatışlar[[#This Row],[Satılan Birim (perakende)]]*tblSatışlar[[#This Row],[Birim Başına Perakende Fiyat]]+tblSatışlar[[#This Row],[Satılan Birim (toplam)]]*tblSatışlar[[#This Row],[Birim Başına Toptan Fiyat*]]","v":{"v":76888,"d":"76,888 TL"}}]
[null,2,{"$f":"IFERROR(IF(tblSatışlar[[#This Row],[Ürün No]]<>\"\",VLOOKUP(tblSatışlar[Ürün No],tblÜrünler[[Ürün No]:[Ad]],2,FALSE),\"\"),\"Bilinmeyen Ürün No\")","v":"Sandalet"},"2012-05-14",64,{"v":40,"d":"40 TL"},876,{"v":1663,"d":"1,663"},{"$f":"tblSatışlar[[#This Row],[Satılan Birim (perakende)]]+tblSatışlar[[#This Row],[Satılan Birim (toplam)]]","v":{"v":2539,"d":"2,539"}},{"$f":"tblSatışlar[[#This Row],[Satılan Birim (perakende)]]*tblSatışlar[[#This Row],[Birim Başına Perakende Fiyat]]+tblSatışlar[[#This Row],[Satılan Birim (toplam)]]*tblSatışlar[[#This Row],[Birim Başına Toptan Fiyat*]]","v":{"v":122584,"d":"122,584 TL"}}]
[null,3,{"$f":"IFERROR(IF(tblSatışlar[[#This Row],[Ürün No]]<>\"\",VLOOKUP(tblSatışlar[Ürün No],tblÜrünler[[Ürün No]:[Ad]],2,FALSE),\"\"),\"Bilinmeyen Ürün No\")","v":"Şemsiye"},"2012-05-14",33,{"v":30,"d":"30 TL"},881,{"v":1149,"d":"1,149"},{"$f":"tblSatışlar[[#This Row],[Satılan Birim (perakende)]]+tblSatışlar[[#This Row],[Satılan Birim (toplam)]]","v":{"v":2030,"d":"2,030"}},{"$f":"tblSatışlar[[#This Row],[Satılan Birim (perakende)]]*tblSatışlar[[#This Row],[Birim Başına Perakende Fiyat]]+tblSatışlar[[#This Row],[Satılan Birim (toplam)]]*tblSatışlar[[#This Row],[Birim Başına Toptan Fiyat*]]","v":{"v":63543,"d":"63,543 TL"}}]
[null,4,{"$f":"IFERROR(IF(tblSatışlar[[#This Row],[Ürün No]]<>\"\",VLOOKUP(tblSatışlar[Ürün No],tblÜrünler[[Ürün No]:[Ad]],2,FALSE),\"\"),\"Bilinmeyen Ürün No\")","v":"Su şişesi"},"2012-05-14",29,{"v":27,"d":"27 TL"},802,{"v":1548,"d":"1,548"},{"$f":"tblSatışlar[[#This Row],[Satılan Birim (perakende)]]+tblSatışlar[[#This Row],[Satılan Birim (toplam)]]","v":{"v":2350,"d":"2,350"}},{"$f":"tblSatışlar[[#This Row],[Satılan Birim (perakende)]]*tblSatışlar[[#This Row],[Birim Başına Perakende Fiyat]]+tblSatışlar[[#This Row],[Satılan Birim (toplam)]]*tblSatışlar[[#This Row],[Birim Başına Toptan Fiyat*]]","v":{"v":65054,"d":"65,054 TL"}}]
[null,5,{"$f":"IFERROR(IF(tblSatışlar[[#This Row],[Ürün No]]<>\"\",VLOOKUP(tblSatışlar[Ürün No],tblÜrünler[[Ürün No]:[Ad]],2,FALSE),\"\"),\"Bilinmeyen Ürün No\")","v":"Şort"},"2013-12-11",24,{"v":15,"d":"15 TL"},824,{"v":1994,"d":"1,994"},{"$f":"tblSatışlar[[#This Row],[Satılan Birim (perakende)]]+tblSatışlar[[#This Row],[Satılan Birim (toplam)]]","v":{"v":2818,"d":"2,818"}},{"$f":"tblSatışlar[[#This Row],[Satılan Birim (perakende)]]*tblSatışlar[[#This Row],[Birim Başına Perakende Fiyat]]+tblSatışlar[[#This Row],[Satılan Birim (toplam)]]*tblSatışlar[[#This Row],[Birim Başına Toptan Fiyat*]]","v":{"v":49686,"d":"49,686 TL"}}]

{"sheet":"Fiyat Listesi","index":2,"n_rows":18,"n_cols":6,"rows_kept":18,"merged":[[15,1,15,5]]}
[null,"Ürün Fiyat Listesi"]
[]
[null,"Güzel İşler"]
[null,"23456 Çınar Sokağı"]
[null,"Mecidiyeköy, İST 77503"]
[null,"Telefon: 212 123 45 67"]
[null,"Faks: 212 123 45 78"]
[null,"www.guzel-isler.com",{"$nulls":3},"Son güncelleştirme 15.08.2013"]
[]
[null,"Ürün No","Ad","Açıklama","Birim Başına Perakende Fiyat","Birim Başına Toptan Fiyat*"]
[null,1,"Gömlek","%100 pamuk, çekmeye dayanıklı gömleklerimizle tüm yazı serin geçirin.",{"v":22,"d":"22 TL"},{"v":15,"d":"15.00 TL"}]
[null,2,"Sandalet","Ağır işçilikle üretilmiş lastik sandaletlerimizden bir çift giyin ve en sıcak kumlarda bile kolaylıkla yürüyün.",{"v":10,"d":"10 TL"},{"v":6,"d":"6.00 TL"}]
[null,3,"Şemsiye","Zararlı UV ışınlarını %96'ya kadar engelleyen büyük plaj şemsiyemizle güneşten korunun.",{"v":30,"d":"30 TL"},{"v":20,"d":"20.00 TL"}]
[null,4,"Su şişesi","Yalıtılmış su şişemizden mükemmel sıcaklıktaki sudan içerek ferahlayın.",{"v":7,"d":"7 TL"},{"v":5,"d":"5.00 TL"}]
[null,5,"Şort","Çok hızlı kuruyan naylon şortlarımızla sudan çıkıp doğrudan arabanıza binebilirsiniz.",{"v":15,"d":"15 TL"},{"v":8,"d":"8.00 TL"}]
[]
[{"$nulls":5},"Listelenmeyen öğeler için bizi arayın."]
[{"$nulls":5},"*Toptan fiyat 12 birimden fazla miktarlarda geçerlidir."]

{"sheet":"Fiyat Noktası Özeti","index":3,"n_rows":10,"n_cols":4,"rows_kept":10,"hidden":true,"merged":[[1,1,1,3]]}
[null,"Fiyat Noktası PivotTable'ı"]
[null,"Bu sayfa gizli kalmalıdır. Aşağıdaki PivotTable'da yapılacak herhangi bir değişiklik Ürün Satış Raporu'nda yanlış veriler olmasıyla sonuçlanabilir. "]
[null,"Seçili Ürün:",{"$f":"IF(LEN(B5),B5,\"Yok\")","v":"Sandalet"}]
[null,"Ürün Adı","Birim Başına Perakende Fiyat","Toplam Satış Özeti (#)"]
[null,"Sandalet",{"v":38,"d":"38 TL"},2464]
[null,null,{"v":50,"d":"50 TL"},1777]
[null,null,{"v":64,"d":"64 TL"},2539]
[null,null,{"v":70,"d":"70 TL"},1787]
[null,null,{"v":83,"d":"83 TL"},1758]
[null,null,{"v":91,"d":"91 TL"},2715]

{"sheet":"Satış Eğilimi Özeti","index":4,"n_rows":9,"n_cols":3,"rows_kept":9,"hidden":true,"merged":[[1,1,1,3]]}
[null,"Satış Eğilimi PivotTable'ı"]
[null,"Bu sayfa gizli kalmalıdır. Aşağıdaki PivotTable'da yapılacak herhangi bir değişiklik Ürün Satış Raporu'nda yanlış veriler olmasıyla sonuçlanabilir. "]
[null,"Toplam Satış Özeti (#)","Ürün Adı"]
[null,"Fiyat Tarihi","Sandalet"]
[null,"Oca",1787]
[null,"Şub",4222]
[null,"Mar",1777]
[null,"Nis",2715]
[null,"May",2539]